[Event "*** Titled Tuesday Blitz"]
[Site "Chess.com"]
[Date "2020.04.28"]
[Round "6"]
[White "canary2016"]
[Black "ViktoriyaTarasova"]
[Result "0-1"]
[WhiteElo "1882"]
[BlackElo "2290"]
[TimeControl "180+1"]
[EndTime "11:07:00 PDT"]
[Termination "ViktoriyaTarasova won by resignation"]

1. Nf3 {[%clk 0:03:00.9]} 1... d5 {[%clk 0:02:56.5]} 2. c4 {[%clk 0:02:59.8]}
2... d4 {[%clk 0:02:55.8]} 3. b4 {[%clk 0:02:59.3]} 3... g6 {[%clk 0:02:53.8]}
4. Bb2 {[%clk 0:02:54.7]} 4... Bg7 {[%clk 0:02:54]} 5. g3 {[%clk 0:02:53.1]}
5... e5 {[%clk 0:02:53]} 6. d3 {[%clk 0:02:49.6]} 6... Ne7 {[%clk 0:02:53.4]} 7.
Bg2 {[%clk 0:02:49.6]} 7... O-O {[%clk 0:02:53.9]} 8. O-O {[%clk 0:02:49.6]}
8... a5 {[%clk 0:02:54.3]} 9. b5 {[%clk 0:02:46.5]} 9... Nd7 {[%clk 0:02:53.6]}
10. Nbd2 {[%clk 0:02:45.5]} 10... Nc5 {[%clk 0:02:51.3]} 11. Nb3 {[%clk
0:02:41]} 11... Na4 {[%clk 0:02:50.4]} 12. Qc2 {[%clk 0:02:39.9]} 12... Nxb2
{[%clk 0:02:50.4]} 13. Qxb2 {[%clk 0:02:40]} 13... a4 {[%clk 0:02:50.7]} 14. Nc5
{[%clk 0:02:38.9]} 14... b6 {[%clk 0:02:41.8]} 15. Ne4 {[%clk 0:02:26.1]} 15...
Bb7 {[%clk 0:02:35.7]} 16. Nfd2 {[%clk 0:02:16.7]} 16... Kh8 {[%clk 0:02:33.8]}
17. e3 {[%clk 0:02:05.5]} 17... dxe3 {[%clk 0:02:27.7]} 18. fxe3 {[%clk
0:02:05.1]} 18... Qxd3 {[%clk 0:02:27.5]} 19. Rae1 {[%clk 0:01:48.4]} 19... Nf5
{[%clk 0:02:23.8]} 20. Qc3 {[%clk 0:01:35.3]} 20... Qxc3 {[%clk 0:02:20.1]} 21.
Nxc3 {[%clk 0:01:34.8]} 21... Bxg2 {[%clk 0:02:20.5]} 22. Kxg2 {[%clk
0:01:34.2]} 22... Rfd8 {[%clk 0:02:18]} 23. Nde4 {[%clk 0:01:25.2]} 23... Rd3
{[%clk 0:02:16.6]} 24. Rf3 {[%clk 0:01:19.1]} 24... Bh6 {[%clk 0:02:15.5]} 25.
Nd5 {[%clk 0:01:15.2]} 25... Ra3 {[%clk 0:02:14.4]} 26. Re2 {[%clk 0:01:10.6]}
26... Rc8 {[%clk 0:02:10.7]} 27. Ndf6 {[%clk 0:01:05.2]} 27... c6 {[%clk
0:02:07.6]} 28. Ng4 {[%clk 0:01:04.5]} 28... Bg7 {[%clk 0:02:04.5]} 29. bxc6
{[%clk 0:00:54.7]} 29... Rxc6 {[%clk 0:02:03.7]} 30. Ngf2 {[%clk 0:00:47.9]}
30... Rxc4 {[%clk 0:02:02.8]} 31. g4 {[%clk 0:00:47.1]} 31... Nh4+ {[%clk
0:02:01.6]} 32. Kg3 {[%clk 0:00:47.4]} 32... Nxf3 {[%clk 0:02:02.2]} 33. Kxf3
{[%clk 0:00:47.5]} 33... b5 {[%clk 0:01:57.4]} 34. Nd6 {[%clk 0:00:46.2]} 34...
Rc5 {[%clk 0:01:56.1]} 35. Nxf7+ {[%clk 0:00:45.5]} 35... Kg8 {[%clk 0:01:54.3]}
36. Nd6 {[%clk 0:00:43.6]} 36... b4 {[%clk 0:01:54.4]} 37. Nfe4 {[%clk
0:00:41.9]} 37... Rd5 {[%clk 0:01:54.1]} 38. Rc2 {[%clk 0:00:40.9]} 38... h6
{[%clk 0:01:38.9]} 39. Rc8+ {[%clk 0:00:28.6]} 39... Kh7 {[%clk 0:01:38.7]} 40.
Ne8 {[%clk 0:00:23.9]} 40... Rd1 {[%clk 0:01:18.9]} 41. N8f6+ {[%clk 0:00:23.6]}
41... Bxf6 {[%clk 0:01:19.1]} 42. Nxf6+ {[%clk 0:00:23.4]} 42... Kg7 {[%clk
0:01:19.8]} 43. Ne4 {[%clk 0:00:20.5]} 43... Rxa2 {[%clk 0:01:17.6]} 44. Rc7+
{[%clk 0:00:19.7]} 44... Kf8 {[%clk 0:01:17.4]} 45. Rc8+ {[%clk 0:00:18.9]}
45... Ke7 {[%clk 0:01:17.3]} 46. Rc7+ {[%clk 0:00:18.9]} 46... Kd8 {[%clk
0:01:17.5]} 47. Rh7 {[%clk 0:00:17.8]} 47... Rf1+ {[%clk 0:01:15.4]} 48. Kg3
{[%clk 0:00:17.9]} 48... b3 {[%clk 0:01:11.9]} 49. Rh8+ {[%clk 0:00:17.2]} 49...
Kc7 {[%clk 0:01:11.4]} 50. Rh7+ {[%clk 0:00:17.1]} 50... Kc6 {[%clk 0:01:11.4]}
51. Rh8 {[%clk 0:00:15.5]} 51... b2 {[%clk 0:01:11.1]} 52. Rc8+ {[%clk
0:00:14.4]} 52... Kd7 {[%clk 0:01:06.8]} 53. Ra8 {[%clk 0:00:07.9]} 53... b1=Q
{[%clk 0:01:05.5]} 54. Ra7+ {[%clk 0:00:08.1]} 54... Kc8 {[%clk 0:01:04]} 55.
Nd6+ {[%clk 0:00:06.5]} 55... Kb8 {[%clk 0:01:04]} 56. Rb7+ {[%clk 0:00:05.8]}
56... Qxb7 {[%clk 0:01:03.2]} 57. Nxb7 {[%clk 0:00:05.6]} 57... Kxb7 {[%clk
0:01:03.9]} 0-1

[Event "*** Titled Tuesday Blitz"]
[Site "Chess.com"]
[Date "2020.04.28"]
[Round "6"]
[White "Ariadna_Atreides"]
[Black "manuellarrea"]
[Result "0-1"]
[WhiteElo "2017"]
[BlackElo "2172"]
[TimeControl "180+1"]
[EndTime "11:07:00 PDT"]
[Termination "manuellarrea won on time"]

1. Nf3 {[%clk 0:03:00.9]} 1... Nf6 {[%clk 0:02:59.2]} 2. c4 {[%clk 0:02:59.5]}
2... g6 {[%clk 0:02:58.2]} 3. b4 {[%clk 0:02:57.9]} 3... Bg7 {[%clk 0:02:58.6]}
4. Bb2 {[%clk 0:02:58]} 4... O-O {[%clk 0:02:58.9]} 5. g3 {[%clk 0:02:58.1]}
5... a5 {[%clk 0:02:59]} 6. b5 {[%clk 0:02:57.4]} 6... b6 {[%clk 0:02:52.3]} 7.
Bg2 {[%clk 0:02:56.6]} 7... Bb7 {[%clk 0:02:52.6]} 8. O-O {[%clk 0:02:56.3]}
8... c5 {[%clk 0:02:46.3]} 9. d4 {[%clk 0:02:38.6]} 9... cxd4 {[%clk 0:02:43.9]}
10. Bxd4 {[%clk 0:02:36.2]} 10... d6 {[%clk 0:02:40.8]} 11. e3 {[%clk 0:02:33]}
11... Nbd7 {[%clk 0:02:40.6]} 12. Nbd2 {[%clk 0:02:30.4]} 12... Rc8 {[%clk
0:02:39.1]} 13. Nb3 {[%clk 0:02:28.9]} 13... Rxc4 {[%clk 0:02:33.4]} 14. Qd3
{[%clk 0:02:24.5]} 14... Rc7 {[%clk 0:02:24.7]} 15. a4 {[%clk 0:02:17.9]} 15...
Qa8 {[%clk 0:02:23.4]} 16. Ne1 {[%clk 0:02:08.5]} 16... Rfc8 {[%clk 0:02:18.6]}
17. Bxb7 {[%clk 0:01:37.4]} 17... Qxb7 {[%clk 0:02:18]} 18. Ng2 {[%clk
0:01:34.6]} 18... Nc5 {[%clk 0:01:51.6]} 19. Nxc5 {[%clk 0:01:30.3]} 19... dxc5
{[%clk 0:01:48.4]} 20. Be5 {[%clk 0:01:28.4]} 20... Rd7 {[%clk 0:01:46.6]} 21.
Qc3 {[%clk 0:01:25.3]} 21... Rcd8 {[%clk 0:01:44.8]} 22. Rac1 {[%clk 0:00:54]}
22... Ne4 {[%clk 0:01:36.2]} 23. Qa1 {[%clk 0:00:51.5]} 23... Bxe5 {[%clk
0:01:29.2]} 24. Qxe5 {[%clk 0:00:50.7]} 24... Nd2 {[%clk 0:01:29.1]} 25. Qc3
{[%clk 0:00:41.5]} 25... Nxf1 {[%clk 0:01:23.9]} 26. Rxf1 {[%clk 0:00:42]} 26...
Rd1 {[%clk 0:01:22.3]} 27. Qc2 {[%clk 0:00:30.2]} 27... Rxf1+ {[%clk 0:01:18.4]}
28. Kxf1 {[%clk 0:00:30.1]} 28... Qf3 {[%clk 0:01:18.3]} 29. Ne1 {[%clk
0:00:18.9]} 29... Rd1 {[%clk 0:00:53.3]} 30. Qc3 {[%clk 0:00:18.8]} 30... h5
{[%clk 0:00:42.9]} 31. h4 {[%clk 0:00:18.1]} 31... e6 {[%clk 0:00:36.2]} 32. Qe5
{[%clk 0:00:05]} 32... Qh1+ {[%clk 0:00:30.6]} 33. Ke2 {[%clk 0:00:04.9]} 33...
Qxe1+ {[%clk 0:00:29.1]} 34. Kf3 {[%clk 0:00:05.4]} 34... Qh1+ {[%clk 0:00:28]}
35. Kf4 {[%clk 0:00:04.4]} 35... Rd5 {[%clk 0:00:20.6]} 36. Qb8+ {[%clk
0:00:03.1]} 36... Kg7 {[%clk 0:00:20.6]} 0-1

[Event "*** Titled Tuesday Blitz"]
[Site "Chess.com"]
[Date "2020.04.28"]
[Round "6"]
[White "Kobalia"]
[Black "AminMolaei"]
[Result "0-1"]
[WhiteElo "2687"]
[BlackElo "2514"]
[TimeControl "180+1"]
[EndTime "11:07:01 PDT"]
[Termination "AminMolaei won on time"]

1. e4 {[%clk 0:03:00.9]} 1... c5 {[%clk 0:02:59.7]} 2. Nf3 {[%clk 0:03:00.4]}
2... g6 {[%clk 0:02:57.2]} 3. d4 {[%clk 0:02:58.8]} 3... cxd4 {[%clk 0:02:58.1]}
4. Nxd4 {[%clk 0:02:59.3]} 4... Nc6 {[%clk 0:02:58.4]} 5. c4 {[%clk 0:02:59.7]}
5... Nf6 {[%clk 0:02:58.2]} 6. Nc3 {[%clk 0:02:58.9]} 6... d6 {[%clk 0:02:57.8]}
7. Be2 {[%clk 0:02:57.5]} 7... Nxd4 {[%clk 0:02:57.6]} 8. Qxd4 {[%clk
0:02:57.1]} 8... Bg7 {[%clk 0:02:57.6]} 9. Bg5 {[%clk 0:02:56.9]} 9... O-O
{[%clk 0:02:54.9]} 10. Qd2 {[%clk 0:02:57.3]} 10... a5 {[%clk 0:02:54.1]} 11.
O-O {[%clk 0:02:56]} 11... a4 {[%clk 0:02:54]} 12. Bd3 {[%clk 0:02:53]} 12...
Qa5 {[%clk 0:02:47.1]} 13. Rac1 {[%clk 0:02:47.6]} 13... Be6 {[%clk 0:02:43.7]}
14. Bh4 {[%clk 0:02:25.7]} 14... Rfc8 {[%clk 0:02:39.1]} 15. Qe2 {[%clk
0:02:25.4]} 15... Qb4 {[%clk 0:02:24.6]} 16. a3 {[%clk 0:02:02]} 16... Qb3
{[%clk 0:02:02.8]} 17. Nb5 {[%clk 0:01:53.6]} 17... Nh5 {[%clk 0:02:00.7]} 18.
Qe3 {[%clk 0:01:44.5]} 18... Be5 {[%clk 0:01:13.8]} 19. g3 {[%clk 0:01:42.1]}
19... f6 {[%clk 0:01:06.1]} 20. Nd4 {[%clk 0:00:53.7]} 20... Bxd4 {[%clk
0:00:41.1]} 21. Qxd4 {[%clk 0:00:52.3]} 21... g5 {[%clk 0:00:41.2]} 22. Rc3
{[%clk 0:00:46.4]} 22... Qxb2 {[%clk 0:00:34.2]} 23. Rb1 {[%clk 0:00:44.1]}
23... Qd2 {[%clk 0:00:32.3]} 24. e5 {[%clk 0:00:39]} 24... Bf5 {[%clk
0:00:19.8]} 25. exf6 {[%clk 0:00:20.2]} 25... Nxf6 {[%clk 0:00:17.4]} 26. Bxg5
{[%clk 0:00:17.8]} 26... Qxg5 {[%clk 0:00:18.3]} 27. Rxb7 {[%clk 0:00:14.8]}
27... e5 {[%clk 0:00:12.9]} 28. Qb6 {[%clk 0:00:09.3]} 28... Ne4 {[%clk
0:00:08.3]} 29. Rc1 {[%clk 0:00:07.1]} 29... Qxc1+ {[%clk 0:00:07.5]} 0-1

[Event "*** Titled Tuesday Blitz"]
[Site "Chess.com"]
[Date "2020.04.28"]
[Round "6"]
[White "Quattroporte300"]
[Black "kingofthenil"]
[Result "0-1"]
[WhiteElo "2298"]
[BlackElo "2465"]
[TimeControl "180+1"]
[EndTime "11:07:01 PDT"]
[Termination "kingofthenil won by resignation"]

1. e4 {[%clk 0:02:58.9]} 1... e6 {[%clk 0:02:59.3]} 2. d4 {[%clk 0:02:58.7]}
2... d5 {[%clk 0:03:00.2]} 3. Nd2 {[%clk 0:02:59.1]} 3... c5 {[%clk 0:03:00.1]}
4. Ngf3 {[%clk 0:02:58.7]} 4... Nc6 {[%clk 0:02:58.6]} 5. c3 {[%clk 0:02:52.1]}
5... cxd4 {[%clk 0:02:43.3]} 6. cxd4 {[%clk 0:02:50.2]} 6... dxe4 {[%clk
0:02:44.2]} 7. Nxe4 {[%clk 0:02:49.9]} 7... Nf6 {[%clk 0:02:45.1]} 8. Nxf6+
{[%clk 0:02:43.8]} 8... Qxf6 {[%clk 0:02:41.9]} 9. Bc4 {[%clk 0:02:42.6]} 9...
Bd6 {[%clk 0:02:34.7]} 10. O-O {[%clk 0:02:39.3]} 10... O-O {[%clk 0:02:26.7]}
11. Bg5 {[%clk 0:02:36.3]} 11... Qg6 {[%clk 0:02:22.8]} 12. Re1 {[%clk
0:02:18.8]} 12... Bd7 {[%clk 0:02:16.8]} 13. Rc1 {[%clk 0:02:16.1]} 13... Rac8
{[%clk 0:02:15.6]} 14. Bd3 {[%clk 0:02:02]} 14... Qh5 {[%clk 0:02:14.1]} 15. Be3
{[%clk 0:01:39.2]} 15... Nb4 {[%clk 0:02:05.7]} 16. Bb1 {[%clk 0:01:34.4]} 16...
Bc6 {[%clk 0:02:05.2]} 17. h3 {[%clk 0:01:30.2]} 17... Bxf3 {[%clk 0:02:03.1]}
18. Qxf3 {[%clk 0:01:28.4]} 18... Qxf3 {[%clk 0:02:00.9]} 19. gxf3 {[%clk
0:01:28.9]} 19... Rfd8 {[%clk 0:01:54.6]} 20. Kf1 {[%clk 0:01:24.1]} 20... Kf8
{[%clk 0:01:47.9]} 21. Ke2 {[%clk 0:01:14]} 21... Nd5 {[%clk 0:01:44.2]} 22. Be4
{[%clk 0:01:01.6]} 22... Ke7 {[%clk 0:01:36.2]} 23. a3 {[%clk 0:00:52.1]} 23...
Kd7 {[%clk 0:01:34.1]} 24. Kd3 {[%clk 0:00:49]} 24... Rxc1 {[%clk 0:01:26.8]}
25. Rxc1 {[%clk 0:00:48]} 25... Rc8 {[%clk 0:01:27.7]} 26. Rxc8 {[%clk
0:00:45.5]} 26... Kxc8 {[%clk 0:01:28.6]} 27. h4 {[%clk 0:00:39.1]} 27... h5
{[%clk 0:01:24.6]} 28. Bd2 {[%clk 0:00:31.6]} 28... Kd7 {[%clk 0:01:21.1]} 29.
Kc4 {[%clk 0:00:30.9]} 29... Kc6 {[%clk 0:01:19.7]} 30. b4 {[%clk 0:00:29.9]}
30... b5+ {[%clk 0:01:18.5]} 31. Kd3 {[%clk 0:00:29.6]} 31... Kd7 {[%clk
0:01:18]} 32. Ke2 {[%clk 0:00:28.8]} 32... Be7 {[%clk 0:01:07.7]} 33. Bg5 {[%clk
0:00:22.7]} 33... Bxg5 {[%clk 0:01:02.9]} 34. hxg5 {[%clk 0:00:22.7]} 34... Kd6
{[%clk 0:01:01.1]} 35. Kd2 {[%clk 0:00:15.7]} 35... g6 {[%clk 0:00:59.9]} 36.
Bd3 {[%clk 0:00:15.3]} 36... a6 {[%clk 0:00:57.7]} 37. Kc2 {[%clk 0:00:14.5]}
37... Ne7 {[%clk 0:00:57.3]} 38. Be4 {[%clk 0:00:14.3]} 38... Nd5 {[%clk
0:00:46.9]} 39. Kb3 {[%clk 0:00:12.5]} 39... Nf4 {[%clk 0:00:33]} 40. Bb7 {[%clk
0:00:08.4]} 40... h4 {[%clk 0:00:28.1]} 41. Bxa6 {[%clk 0:00:07.8]} 41... h3
{[%clk 0:00:27.8]} 42. Bxb5 {[%clk 0:00:08.2]} 42... h2 {[%clk 0:00:27.9]} 0-1

[Event "*** Titled Tuesday Blitz"]
[Site "Chess.com"]
[Date "2020.04.28"]
[Round "6"]
[White "chenxiaoyuer"]
[Black "fabianvivasz"]
[Result "0-1"]
[WhiteElo "2143"]
[BlackElo "2406"]
[TimeControl "180+1"]
[EndTime "11:07:03 PDT"]
[Termination "fabianvivasz won by checkmate"]

1. e4 {[%clk 0:03:00.9]} 1... c5 {[%clk 0:02:59.3]} 2. Nf3 {[%clk 0:02:59.2]}
2... d6 {[%clk 0:02:59.2]} 3. d4 {[%clk 0:02:52.8]} 3... cxd4 {[%clk 0:03:00.1]}
4. Nxd4 {[%clk 0:02:53.6]} 4... Nf6 {[%clk 0:03:00.4]} 5. Nc3 {[%clk 0:02:53.5]}
5... a6 {[%clk 0:03:00.8]} 6. Be2 {[%clk 0:02:53.5]} 6... e5 {[%clk 0:03:00]} 7.
Nb3 {[%clk 0:02:52.7]} 7... Be7 {[%clk 0:03:00.2]} 8. O-O {[%clk 0:02:47.1]}
8... O-O {[%clk 0:03:00.1]} 9. Kh1 {[%clk 0:02:46.6]} 9... b6 {[%clk 0:02:48.1]}
10. f4 {[%clk 0:02:44.7]} 10... Bb7 {[%clk 0:02:44.5]} 11. Bf3 {[%clk
0:02:44.5]} 11... Nbd7 {[%clk 0:02:43.6]} 12. f5 {[%clk 0:02:41.4]} 12... Rc8
{[%clk 0:02:42.1]} 13. Qe2 {[%clk 0:02:41.1]} 13... b5 {[%clk 0:02:30.4]} 14. a3
{[%clk 0:02:40.8]} 14... Nb6 {[%clk 0:02:18.7]} 15. Na5 {[%clk 0:02:26.3]} 15...
Ba8 {[%clk 0:02:18.4]} 16. Be3 {[%clk 0:02:20]} 16... Nc4 {[%clk 0:02:06.9]} 17.
Nxc4 {[%clk 0:02:17.7]} 17... Rxc4 {[%clk 0:02:07.8]} 18. Bg5 {[%clk 0:02:06.5]}
18... Qc7 {[%clk 0:01:54.5]} 19. Rad1 {[%clk 0:02:03]} 19... Rc8 {[%clk
0:01:47.6]} 20. Qe3 {[%clk 0:01:50.7]} 20... h6 {[%clk 0:01:33.7]} 21. Bxf6
{[%clk 0:01:44]} 21... Bxf6 {[%clk 0:01:33.6]} 22. Rd3 {[%clk 0:01:43.7]} 22...
Bg5 {[%clk 0:01:30.8]} 23. Qe2 {[%clk 0:01:43.3]} 23... Qc5 {[%clk 0:01:20.4]}
24. Rfd1 {[%clk 0:01:23.1]} 24... b4 {[%clk 0:01:11]} 25. axb4 {[%clk
0:01:12.3]} 25... Qxb4 {[%clk 0:01:11.9]} 26. Rxd6 {[%clk 0:00:27.8]} 26... Qxb2
{[%clk 0:01:10.3]} 27. Nd5 {[%clk 0:00:25.2]} 27... Rxc2 {[%clk 0:01:03]} 28.
Qf1 {[%clk 0:00:22.7]} 28... Bc6 {[%clk 0:00:38.6]} 29. f6 {[%clk 0:00:15.7]}
29... Bxd5 {[%clk 0:00:27.4]} 30. R6xd5 {[%clk 0:00:13.7]} 30... Bxf6 {[%clk
0:00:27.1]} 31. Bg4 {[%clk 0:00:13.2]} 31... Rb8 {[%clk 0:00:14.1]} 32. Qf3
{[%clk 0:00:05.5]} 32... Rf2 {[%clk 0:00:13.3]} 33. Qg3 {[%clk 0:00:03.1]} 33...
Qc2 {[%clk 0:00:11.4]} 34. Bf3 {[%clk 0:00:02.5]} 34... Rb1 {[%clk 0:00:09.4]}
35. Rxb1 {[%clk 0:00:01.7]} 35... Qxb1+ {[%clk 0:00:10.2]} 36. Rd1 {[%clk
0:00:01.8]} 36... Rf1+ {[%clk 0:00:10]} 37. Rxf1 {[%clk 0:00:01.4]} 37... Qxf1#
{[%clk 0:00:10.9]} 0-1

[Event "*** Titled Tuesday Blitz"]
[Site "Chess.com"]
[Date "2020.04.28"]
[Round "6"]
[White "djogrodek1"]
[Black "davigator"]
[Result "1/2-1/2"]
[WhiteElo "2549"]
[BlackElo "2394"]
[TimeControl "180+1"]
[EndTime "11:07:04 PDT"]
[Termination "Game drawn by agreement"]

1. d4 {[%clk 0:03:00.9]} 1... e6 {[%clk 0:02:58.4]} 2. e4 {[%clk 0:02:40.5]}
2... d5 {[%clk 0:02:57.5]} 3. Nd2 {[%clk 0:02:40.5]} 3... c5 {[%clk 0:02:56.2]}
4. exd5 {[%clk 0:02:38.7]} 4... exd5 {[%clk 0:02:56.3]} 5. Ngf3 {[%clk
0:02:38.9]} 5... Nc6 {[%clk 0:02:55]} 6. Bb5 {[%clk 0:02:39.4]} 6... Nf6 {[%clk
0:02:52.6]} 7. O-O {[%clk 0:02:39.4]} 7... Be7 {[%clk 0:02:52.3]} 8. dxc5 {[%clk
0:02:39.9]} 8... Bxc5 {[%clk 0:02:52.7]} 9. Re1+ {[%clk 0:02:39.2]} 9... Be7
{[%clk 0:02:52.9]} 10. Qe2 {[%clk 0:02:35.5]} 10... Bg4 {[%clk 0:02:45.7]} 11.
h3 {[%clk 0:02:34.4]} 11... Bh5 {[%clk 0:02:44.2]} 12. b3 {[%clk 0:02:09.5]}
12... Rc8 {[%clk 0:02:33]} 13. Ba3 {[%clk 0:02:03.7]} 13... Rc7 {[%clk
0:02:29.7]} 14. Bxc6+ {[%clk 0:01:39]} 14... bxc6 {[%clk 0:02:27.8]} 15. g4
{[%clk 0:01:39.4]} 15... Bg6 {[%clk 0:02:26.9]} 16. Ne5 {[%clk 0:01:39.9]} 16...
Bxc2 {[%clk 0:02:13.1]} 17. Rac1 {[%clk 0:01:38.3]} 17... Be4 {[%clk 0:02:10.8]}
18. Bxe7 {[%clk 0:01:27.8]} 18... Qxe7 {[%clk 0:02:09.6]} 19. Nxc6 {[%clk
0:01:27.2]} 19... Qd6 {[%clk 0:02:07.1]} 20. g5 {[%clk 0:00:56.2]} 20... Rxc6
{[%clk 0:02:04.7]} 21. Rxc6 {[%clk 0:00:51.9]} 21... Qxc6 {[%clk 0:02:04.2]} 22.
gxf6 {[%clk 0:00:52.8]} 22... O-O {[%clk 0:02:04.4]} 23. Nxe4 {[%clk 0:00:48.5]}
23... dxe4 {[%clk 0:02:03.9]} 24. fxg7 {[%clk 0:00:48.8]} 24... Re8 {[%clk
0:02:02.8]} 25. Qg4 {[%clk 0:00:36.8]} 25... a5 {[%clk 0:01:54.4]} 26. Kh2
{[%clk 0:00:31.7]} 26... a4 {[%clk 0:01:54]} 27. Re3 {[%clk 0:00:22.3]} 27...
axb3 {[%clk 0:01:53.3]} 28. axb3 {[%clk 0:00:23.2]} 28... Qd5 {[%clk 0:01:49.3]}
29. Qg3 {[%clk 0:00:17.8]} 29... f6 {[%clk 0:01:46.3]} 30. Qf4 {[%clk 0:00:16]}
30... f5 {[%clk 0:01:45.1]} 31. Rg3 {[%clk 0:00:15.3]} 31... Qe5 {[%clk
0:01:42]} 32. Qxe5 {[%clk 0:00:12.5]} 32... Rxe5 {[%clk 0:01:41.6]} 33. Kg2
{[%clk 0:00:12.6]} 33... Rb5 {[%clk 0:01:22.2]} 34. Kf1 {[%clk 0:00:12.5]} 34...
f4 {[%clk 0:01:17.3]} 35. Rg4 {[%clk 0:00:12.1]} 35... Rf5 {[%clk 0:01:17.7]}
36. Ke2 {[%clk 0:00:10.6]} 36... h5 {[%clk 0:01:17]} 37. Rg6 {[%clk 0:00:09.1]}
37... Rb5 {[%clk 0:01:15.9]} 38. Rf6 {[%clk 0:00:07.8]} 38... f3+ {[%clk
0:01:15.9]} 39. Ke3 {[%clk 0:00:08.1]} 39... Rxb3+ {[%clk 0:01:16.4]} 40. Kxe4
{[%clk 0:00:08.6]} 40... Kxg7 {[%clk 0:01:16.9]} 41. Rxf3 {[%clk 0:00:09]} 41...
Rb4+ {[%clk 0:01:15.9]} 42. Kf5 {[%clk 0:00:08.8]} 42... Kh6 {[%clk 0:01:16]}
43. Re3 {[%clk 0:00:08]} 43... Rb5+ {[%clk 0:01:16]} 44. Kf4 {[%clk 0:00:08.5]}
44... Rb4+ {[%clk 0:01:15.2]} 45. Kg3 {[%clk 0:00:08.6]} 45... Rb6 {[%clk
0:01:14.7]} 46. h4 {[%clk 0:00:08.7]} 46... Rf6 {[%clk 0:01:14.5]} 47. f4 {[%clk
0:00:08]} 47... Kg6 {[%clk 0:01:14.2]} 48. Kf3 {[%clk 0:00:08.4]} 48... Ra6
{[%clk 0:01:13.9]} 49. Rd3 {[%clk 0:00:08.6]} 49... Rb6 {[%clk 0:01:13.8]} 50.
Ke4 {[%clk 0:00:09]} 50... Ra6 {[%clk 0:01:13.5]} 51. Ke5 {[%clk 0:00:08.2]}
51... Ra5+ {[%clk 0:01:12.1]} 52. Ke4 {[%clk 0:00:08.6]} 52... Ra6 {[%clk
0:01:12.1]} 53. Rd4 {[%clk 0:00:09]} 53... Re6+ {[%clk 0:01:11.6]} 54. Kf3
{[%clk 0:00:09.4]} 54... Ra6 {[%clk 0:01:12.2]} 55. Ke4 {[%clk 0:00:09.2]} 55...
Re6+ {[%clk 0:01:11.8]} 56. Kf3 {[%clk 0:00:08.5]} 56... Ra6 {[%clk 0:01:12.2]}
57. Rd5 {[%clk 0:00:08.8]} 57... Ra3+ {[%clk 0:01:11.5]} 58. Ke4 {[%clk
0:00:09.2]} 58... Rh3 {[%clk 0:01:09.9]} 59. Rd6+ {[%clk 0:00:09.7]} 59... Kh7
{[%clk 0:01:09.7]} 60. Kf5 {[%clk 0:00:10.1]} 60... Rxh4 {[%clk 0:01:09.7]} 61.
Kg5 {[%clk 0:00:11]} 61... Rg4+ {[%clk 0:01:09.5]} 62. Kxh5 {[%clk 0:00:09.5]}
62... Rxf4 {[%clk 0:01:09.4]} 63. Rd7+ {[%clk 0:00:09.3]} 1/2-1/2

[Event "*** Titled Tuesday Blitz"]
[Site "Chess.com"]
[Date "2020.04.28"]
[Round "6"]
[White "Tall-guy"]
[Black "czasnaszachy"]
[Result "1/2-1/2"]
[WhiteElo "2119"]
[BlackElo "2305"]
[TimeControl "180+1"]
[EndTime "11:07:04 PDT"]
[Termination "Game drawn by repetition"]

1. e4 {[%clk 0:03:00.9]} 1... c5 {[%clk 0:02:58.8]} 2. Nf3 {[%clk 0:02:59.9]}
2... e6 {[%clk 0:02:56.6]} 3. b3 {[%clk 0:02:58.6]} 3... Qc7 {[%clk 0:02:54.2]}
4. Bb2 {[%clk 0:02:55.8]} 4... a6 {[%clk 0:02:45.4]} 5. Bd3 {[%clk 0:02:50.9]}
5... d6 {[%clk 0:02:41.7]} 6. O-O {[%clk 0:02:49.5]} 6... Nf6 {[%clk 0:02:41.1]}
7. e5 {[%clk 0:02:49.2]} 7... Nd5 {[%clk 0:02:34.4]} 8. c4 {[%clk 0:02:48]} 8...
Nf4 {[%clk 0:02:27.9]} 9. Be4 {[%clk 0:02:36.9]} 9... d5 {[%clk 0:02:19.3]} 10.
Bc2 {[%clk 0:02:10.8]} 10... d4 {[%clk 0:02:06.7]} 11. Be4 {[%clk 0:02:07.4]}
11... Nc6 {[%clk 0:01:53.2]} 12. Bxc6+ {[%clk 0:02:00.2]} 12... Qxc6 {[%clk
0:01:48.6]} 13. d3 {[%clk 0:01:58.1]} 13... Be7 {[%clk 0:01:42.4]} 14. Bc1
{[%clk 0:01:56.7]} 14... Ng6 {[%clk 0:01:41.4]} 15. Nbd2 {[%clk 0:01:50.3]}
15... b6 {[%clk 0:01:32.6]} 16. Ne4 {[%clk 0:01:49.4]} 16... Bb7 {[%clk
0:01:32.4]} 17. b4 {[%clk 0:01:39.9]} 17... Qc7 {[%clk 0:01:26.5]} 18. bxc5
{[%clk 0:01:38.9]} 18... bxc5 {[%clk 0:01:21.7]} 19. Ba3 {[%clk 0:01:02.1]}
19... Bxe4 {[%clk 0:01:16.2]} 20. dxe4 {[%clk 0:00:57.9]} 20... Nxe5 {[%clk
0:01:15.2]} 21. Nxe5 {[%clk 0:00:52.9]} 21... Qxe5 {[%clk 0:01:14.8]} 22. Qa4+
{[%clk 0:00:53.8]} 22... Kf8 {[%clk 0:01:13.8]} 23. Qc6 {[%clk 0:00:48.8]} 23...
Rd8 {[%clk 0:00:54.8]} 24. f4 {[%clk 0:00:42.2]} 24... Qh5 {[%clk 0:00:39.7]}
25. f5 {[%clk 0:00:40.1]} 25... e5 {[%clk 0:00:31.3]} 26. Bxc5 {[%clk 0:00:32]}
26... Re8 {[%clk 0:00:18.8]} 27. Bxe7+ {[%clk 0:00:28.3]} 27... Rxe7 {[%clk
0:00:18.8]} 28. f6 {[%clk 0:00:17.5]} 28... gxf6 {[%clk 0:00:15.9]} 29. Rxf6
{[%clk 0:00:14.9]} 29... Rg8 {[%clk 0:00:13.2]} 30. Raf1 {[%clk 0:00:14.2]}
30... Rg7 {[%clk 0:00:03.8]} 31. Qc8+ {[%clk 0:00:07.7]} 31... Re8 {[%clk
0:00:03.8]} 32. Qc5+ {[%clk 0:00:08.3]} 32... Re7 {[%clk 0:00:03.7]} 33. Qc8+
{[%clk 0:00:06.7]} 33... Re8 {[%clk 0:00:04]} 34. Qc5+ {[%clk 0:00:06.3]} 34...
Re7 {[%clk 0:00:04.5]} 35. Qc8+ {[%clk 0:00:06.2]} 1/2-1/2